lending/lending_fUSD_20251125
["ID","MTS","AMOUNT","RATE_DAILY","PERIOD"]
[394909575,1764109845764,-877.97211758,0.00040767,30]
[394909576,1764109845772,-150.0,0.00040767,30]
[394909578,1764109845782,-2261.26481505,0.00040767,30]
[394909580,1764109845795,-150.0,0.00040767,30]
[394909582,1764109845804,-855.00198116,0.00040767,30]
[394909584,1764109845814,-819.11947874,0.0004077,2]
[394909586,1764109845823,-588.6,0.00040821,8]
[394909588,1764109845833,-1454.26,0.00040821,8]
[394909590,1764109845843,-1363.48,0.00040821,8]
[394909592,1764109845854,-763.45,0.00040821,2]
[394909595,1764109845868,-8713.23,0.00040821,8]
[394909597,1764109845877,-500.0,0.00040821,8]
[394909599,1764109845887,-629.59,0.00040821,8]
[394909601,1764109845897,-300.0,0.00040821,2]
[394909603,1764109845906,-7850.89,0.00040821,8]
[394909605,1764109845916,-2282.37,0.00040841,30]
[394909607,1764109845926,-2282.37,0.00040841,30]
[394909610,1764109845938,-1224.0,0.00040872,7]
[394909612,1764109845947,-690.86,0.00040879,8]
[394909614,1764109845956,-845.17,0.00040879,8]
[394909616,1764109845966,-1347.19,0.00040879,8]
[394909618,1764109845977,-617.34,0.00040879,2]
[394909620,1764109845986,-500.0,0.00040879,8]
[394909622,1764109846000,-1112.79,0.00040879,8]
[394909624,1764109846009,-500.0,0.00040879,8]
[394909626,1764109846018,-500.0,0.00040879,8]
[394909628,1764109846028,-891.76,0.00040879,8]
[394909630,1764109846037,-404.53,0.000409,120]
[394909632,1764109846047,-2000.0,0.000409,120]
[394909635,1764109846056,-3567.30785579,0.00040939,2]
[394909637,1764109846066,-668.46867213,0.00040943,13]
[394909639,1764109846077,-668.468672,0.00040943,13]
[394909641,1764109846087,-668.468672,0.00040943,13]
[394909643,1764109846098,-668.468672,0.00040943,13]
[394909644,1764109846110,-668.468672,0.00040943,13]
[394909646,1764109846120,-668.468672,0.00040943,13]
[394909649,1764109846131,-668.468672,0.00040943,13]
[394909651,1764109846141,-668.468672,0.00040943,13]
[394909653,1764109846150,-668.468672,0.00040943,13]
[394909655,1764109846159,-1200.0,0.00040959,2]
[394909657,1764109846168,-1200.0,0.00040959,2]
[394909659,1764109846177,-1200.0,0.00040959,2]
[394909661,1764109846188,-1200.0,0.00040959,2]
[394909663,1764109846198,-600.0,0.00040987,50]
[394909665,1764109846211,-668.468672,0.0004099,13]
[394909667,1764109846220,-600.0,0.00040999,41]
[394909669,1764109846230,-500.0,0.00040999,2]
[394909671,1764109846239,-500.0,0.00040999,2]
[394909674,1764109846249,-500.0,0.00040999,2]
[394909676,1764109846258,-500.0,0.00040999,2]
[394909678,1764109846268,-285.85758192,0.00040999,2]
[394909679,1764109846276,-50000.0,0.00041,41]
[394909682,1764109846286,-573.9454702,0.00041,30]
[394909683,1764109846295,-204.09718091,0.00041,3]
[394909686,1764109846305,-1000.0,0.00041,120]
[394909688,1764109846315,-1000.0,0.00041,120]
[394909690,1764109846325,-1000.0,0.00041,120]
[394909692,1764109846335,-1000.0,0.00041,120]
[394909694,1764109846344,-1000.0,0.00041,120]
[394909696,1764109846354,-1000.0,0.00041,120]
[394909698,1764109846364,-1000.0,0.00041,120]
[394909700,1764109846372,-1000.0,0.00041,120]
[394909702,1764109846383,-1000.0,0.00041,120]
[394909703,1764109846392,-1000.0,0.00041,120]
[394909706,1764109846404,-1000.0,0.00041,120]
[394909708,1764109846414,-1000.0,0.00041,120]
[394909710,1764109846423,-1500.0,0.00041,120]
[394909712,1764109846433,-150.0,0.00041,3]
[394909714,1764109846442,-111047.05084316,0.00041,2]
[394909716,1764109846451,-979.87860752,0.00041,2]
[394909718,1764109846460,-286.25,0.00041,120]
[394909726,1764109846522,-1943.63,0.00041,120]
[394909728,1764109846532,-1000.0,0.00041,2]
[394909730,1764109846541,-1000.0,0.00041,2]
[394909732,1764109846550,-1000.0,0.00041,2]
[394909734,1764109846560,-1000.0,0.00041,2]
[394909736,1764109846569,-1000.0,0.00041,2]
[394909738,1764109846578,-1000.0,0.00041,2]
[394909740,1764109846590,-1054.99984168,0.00041,2]
[394909742,1764109846599,-1000.0,0.00041,120]
[394909744,1764109846607,-228.05143467,0.00041,120]
[394909746,1764109846617,-5415.05,0.00041,30]
[394909748,1764109846626,-843045.66805159,0.00041,2]
[394909750,1764109846635,-3034.89,0.00041,14]
[394909752,1764109846644,-151.0,0.00041,120]
[394909754,1764109846653,-151.0,0.00041,120]
[394909756,1764109846662,-567.0,0.00041,18]
[394909758,1764109846671,-166.0,0.00041,90]
[394909760,1764109846680,-151.0,0.00041,7]
[394909762,1764109846690,-151.0,0.00041,120]
[394909764,1764109846699,-313.00904,0.00041,15]
[394909766,1764109846709,-313.00904,0.00041,15]
[394909768,1764109846718,-313.00904,0.00041,15]
[394909770,1764109846727,-313.009048,0.00041,15]
[394909772,1764109846736,-64675.22245335,0.00041,2]
[394909774,1764109846746,-1820.90050302,0.00041039,15]
[394909776,1764109846756,-1003.57,0.0004104,120]
[394909779,1764109846765,-1200.0,0.00041059,2]
[394909781,1764109846774,-588.6,0.00041095,8]
[394909783,1764109846786,-1454.26,0.00041095,8]
[394909785,1764109846795,-1363.48,0.00041095,8]
[394909787,1764109846804,-763.45,0.00041095,2]
[394909789,1764109846814,-8713.23,0.00041095,8]
[394909791,1764109846823,-500.0,0.00041095,8]
[394909793,1764109846832,-629.59,0.00041095,8]
[394909795,1764109846841,-300.0,0.00041095,2]
[394909797,1764109846851,-7850.89,0.00041095,8]
[394909799,1764109846863,-248.33,0.00041096,120]
[394909801,1764109846872,-159.16,0.00041096,2]
[394909803,1764109846881,-151.0,0.00041096,60]
[394909804,1764109846891,-151.0,0.00041096,60]
[394909807,1764109846901,-151.0,0.00041096,60]
[394909808,1764109846910,-151.0,0.00041096,60]
[394909811,1764109846920,-151.0,0.00041096,60]
[394909812,1764109846930,-151.0,0.00041096,60]
[394909814,1764109846939,-151.0,0.00041096,60]
[394909816,1764109846949,-151.0,0.00041096,60]
[394909819,1764109846959,-151.0,0.00041096,60]
[394909821,1764109846968,-151.0,0.00041096,60]
[394909823,1764109846978,-151.0,0.00041096,60]
[394909825,1764109846988,-151.0,0.00041096,60]
[394909827,1764109846997,-151.0,0.00041096,60]
[394909829,1764109847006,-151.0,0.00041096,60]
[394909831,1764109847015,-206.818948,0.00041096,60]
[394909832,1764109847024,-1000.0,0.00041096,8]
[394909834,1764109847032,-150.0,0.00041096,30]
[394909837,1764109847042,-205.52713834,0.00041096,8]
[394909839,1764109847052,-500.0,0.00041096,120]
[394909841,1764109847061,-150.0,0.00041099,2]
[394909843,1764109847074,-396.0,0.000411,2]
[394909845,1764109847083,-840.0,0.000411,2]
[394909846,1764109847091,-2282.37,0.00041115,30]
[394909849,1764109847100,-2282.37,0.00041115,30]
[394909851,1764109847109,-500.0,0.00041122,60]
[394909853,1764109847118,-819.11947874,0.00041127,2]
[394909855,1764109847127,-604.0,0.0004113,30]
[394909856,1764109847135,-1000.0,0.00041146,14]
[394909859,1764109847145,-690.86,0.00041153,8]
[394909861,1764109847154,-180.0,0.00041153,10]
[394909863,1764109847163,-845.17,0.00041153,8]
[394909865,1764109847171,-1347.19,0.00041153,8]
[394909867,1764109847188,-617.34,0.00041153,2]
[394909869,1764109847200,-500.0,0.00041153,8]
[394909871,1764109847210,-1112.79,0.00041153,8]
[394909874,1764109847219,-208.60219052,0.00041153,8]
[394909876,1764109847228,-500.0,0.00041153,8]
[394909878,1764109847237,-891.76,0.00041153,8]
[394909880,1764109847246,-227.168,0.00041159,120]
[394909881,1764109847254,-668.468672,0.0004116,13]
[394909883,1764109847263,-500.0,0.00041169,120]
[394909885,1764109847272,-500.0,0.0004119,30]
[394909887,1764109847281,-500.0,0.0004119,30]
[394909889,1764109847290,-500.0,0.0004119,30]
[394909891,1764109847300,-500.0,0.0004119,30]
[394909893,1764109847309,-500.0,0.0004119,30]
[394909895,1764109847318,-500.0,0.0004119,30]
[394909897,1764109847327,-501.2460561,0.0004119,30]
[394909899,1764109847336,-1000.0,0.00041233,8]
[394909901,1764109847345,-150.0,0.00041233,30]
[394909903,1764109847355,-500.0,0.00041233,120]
[394909905,1764109847364,-5800.0,0.00041265,14]
[394909907,1764109847374,-5800.0,0.00041273,14]
[394909909,1764109847384,-150.0,0.00041305,30]
[394909911,1764109847394,-1102.08,0.00041305,30]
[394909913,1764109847404,-150.0,0.00041305,30]
[394909915,1764109847413,-1212.01,0.00041305,30]
[394909916,1764109847423,-1820.90050302,0.00041306,15]
[394909917,1764109847432,-668.468672,0.0004133,13]
[394909918,1764109847442,-210.0,0.00041333,2]
[394909919,1764109847451,-210.10053974,0.00041369,14]
[394909920,1764109847460,-588.6,0.00041369,8]
[394909921,1764109847469,-1454.26,0.00041369,8]
[394909922,1764109847478,-1363.48,0.00041369,8]
[394909923,1764109847487,-763.45,0.00041369,2]
[394909924,1764109847496,-8713.23,0.00041369,8]
[394909925,1764109847505,-500.0,0.00041369,8]
[394909926,1764109847514,-629.59,0.00041369,8]
[394909927,1764109847523,-300.0,0.00041369,2]
[394909928,1764109847532,-7850.89,0.00041369,8]
[394909929,1764109847541,-1000.0,0.0004137,8]
[394909930,1764109847551,-171.60349751,0.0004137,30]
[394909931,1764109847560,-500.0,0.0004137,120]
[394909932,1764109847569,-2282.37,0.00041389,30]
[394909933,1764109847579,-2282.37,0.00041389,30]
[394909934,1764109847587,-3567.30785579,0.0004139,2]
[394909935,1764109847596,-529.14204968,0.0004139,7]
[394909936,1764109847605,-600.0,0.00041394,106]
[394909937,1764109847614,-5415.05,0.000414,30]
[394909938,1764109847623,-301.52,0.000414,14]
[394909939,1764109847632,-537.85405749,0.00041418,2]
[394909940,1764109847641,-289.66659279,0.0004142,120]
[394909941,1764109847651,-1000.0,0.0004142,14]
[394909942,1764109847660,-690.86,0.00041427,8]
[394909943,1764109847669,-845.17,0.00041427,8]
[394909944,1764109847678,-1347.19,0.00041427,8]
[394909945,1764109847688,-617.34,0.00041427,2]
[394909946,1764109847697,-500.0,0.00041427,8]
[394909947,1764109847706,-1112.79,0.00041427,8]
[394909948,1764109847715,-500.0,0.00041427,8]
[394909949,1764109847724,-891.76,0.00041427,8]
[394909950,1764109847737,-439.05176,0.00041478,2]
[394909951,1764109847747,-819.11947874,0.00041483,3]
[394909952,1764109847756,-354.35678556,0.000415,30]
[394909953,1764109847765,-1500.0,0.000415,30]
[394909954,1764109847775,-1500.0,0.000415,2]
[394909955,1764109847784,-1500.0,0.000415,2]
[394909956,1764109847793,-567.0,0.000415,20]
[394909957,1764109847803,-668.468672,0.000415,13]
[394909958,1764109847813,-1000.0,0.00041507,8]
[394909959,1764109847822,-500.0,0.00041507,120]
[394909960,1764109847831,-604.0,0.0004155,30]
[394909961,1764109847841,-1820.90050302,0.00041572,15]
[394909962,1764109847851,-500.0,0.000416,5]
[394909963,1764109847863,-500.0,0.000416,120]
[394909964,1764109847872,-517.0,0.000416,120]
[394909965,1764109847881,-588.6,0.00041643,8]
[394909966,1764109847891,-1454.26,0.00041643,8]
[394909967,1764109847901,-1363.48,0.00041643,8]
[394909968,1764109847910,-763.45,0.00041643,2]
[394909969,1764109847921,-8713.23,0.00041643,8]
[394909970,1764109847931,-500.0,0.00041643,8]
[394909971,1764109847943,-629.59,0.00041643,8]
[394909972,1764109847954,-300.0,0.00041643,2]
[394909973,1764109847964,-7850.89,0.00041643,8]
[394909974,1764109847974,-1000.0,0.00041644,8]
[394909975,1764109847984,-500.0,0.00041644,120]
[394909976,1764109847993,-161.12634656,0.0004166,2]
[394909977,1764109848003,-2282.37,0.00041663,30]
[394909978,1764109848013,-2282.37,0.00041663,30]
[394909979,1764109848023,-668.468672,0.0004167,13]
[394909980,1764109848033,-1999.0,0.00041694,14]
[394909981,1764109848042,-600.0,0.00041694,60]
[394909982,1764109848052,-161.12634652,0.00041696,2]
[394909983,1764109848062,-500.0,0.000417,4]
[394909984,1764109848072,-512.65,0.000417,4]
[394909985,1764109848082,-500.0,0.000417,5]
[394909986,1764109848092,-500.0,0.000417,5]
[394909987,1764109848105,-500.0,0.000417,5]
[394909988,1764109848116,-1350.33425052,0.000417,7]
[394909989,1764109848130,-80134.55442707,0.000417,7]
[394909990,1764109848140,-2876.67713716,0.000417,7]
[394909991,1764109848150,-3034.89,0.000417,14]
[394909992,1764109848160,-690.86,0.00041701,8]
[394909993,1764109848173,-845.17,0.00041701,8]
[394909994,1764109848183,-1347.19,0.00041701,8]
[394909995,1764109848193,-617.34,0.00041701,2]
[394909996,1764109848202,-500.0,0.00041701,8]
[394909997,1764109848213,-1112.79,0.00041701,8]
[394909998,1764109848223,-500.0,0.00041701,8]
[394909999,1764109848232,-891.76,0.00041701,8]
[394910000,1764109848243,-150.0,0.00041705,120]
[394910001,1764109848253,-1103771.822,0.0004173,30]
[394910002,1764109848263,-161.12634652,0.00041732,2]
[394910004,1764109848274,-1003.57,0.0004176,120]
[394910006,1764109848284,-161.12634652,0.00041768,2]
[394910008,1764109848294,-700.0,0.0004177,3]
[394910010,1764109848303,-400.0,0.0004177,3]
[394910012,1764109848313,-1000.0,0.00041781,8]
[394910014,1764109848323,-500.0,0.00041781,120]
[394910016,1764109848333,-600.0,0.00041792,120]
[394910018,1764109848342,-600.0,0.00041797,30]
[394910020,1764109848352,-223.0315306,0.00041797,30]
[394910022,1764109848362,-257.8247432,0.00041799,120]
[394910024,1764109848372,-151.0,0.00041799,39]
[394910026,1764109848382,-695.39793187,0.00041799,39]
[394910028,1764109848392,-500.0,0.00041799,39]
[394910030,1764109848402,-553.64373807,0.00041799,39]
[394910032,1764109848412,-250.0,0.00041799,39]
[394910034,1764109848421,-250.0,0.00041799,39]
[394910036,1764109848431,-500.0,0.00041799,39]
[394910038,1764109848441,-500.0,0.00041799,39]
[394910040,1764109848451,-600.0,0.00041799,39]
[394910042,1764109848461,-500.0,0.00041799,39]
[394910044,1764109848471,-500.0,0.00041799,39]
[394910046,1764109848480,-151.0,0.00041799,39]
[394910048,1764109848490,-500.0,0.00041799,39]
[394910050,1764109848501,-250.0,0.00041799,39]
[394910053,1764109848514,-500.0,0.00041799,39]
[394910055,1764109848524,-750.17326706,0.000418,39]
[394910057,1764109848534,-1500.0,0.000418,30]
[394910059,1764109848544,-1500.0,0.000418,30]
[394910061,1764109848554,-1500.0,0.000418,30]
[394910063,1764109848563,-1500.0,0.000418,30]
[394910065,1764109848573,-5415.05,0.000418,30]
[394910067,1764109848583,-161.12634652,0.00041804,2]
[394910069,1764109848592,-250.0,0.00041818,120]
[394910071,1764109848602,-151.0,0.00041818,120]
[394910073,1764109848613,-670.58624095,0.00041818,120]
[394910075,1764109848622,-500.0,0.00041818,120]
[394910077,1764109848632,-533.88981491,0.00041818,120]
[394910079,1764109848641,-250.0,0.00041818,120]
[394910081,1764109848651,-250.0,0.00041818,120]
[394910083,1764109848661,-500.0,0.00041818,120]
[394910085,1764109848670,-500.0,0.00041818,120]
[394910087,1764109848680,-600.0,0.00041818,120]
[394910089,1764109848691,-500.0,0.00041818,120]
[394910091,1764109848700,-500.0,0.00041818,120]
[394910093,1764109848710,-151.0,0.00041818,120]
[394910095,1764109848721,-500.0,0.00041818,120]
[394910097,1764109848731,-250.0,0.00041818,120]
[394910100,1764109848740,-500.0,0.00041818,120]
[394910102,1764109848750,-250.0,0.00041823,30]
[394910104,1764109848760,-157.11541327,0.00041823,30]
[394910106,1764109848769,-151.0,0.00041823,30]
[394910108,1764109848779,-601.3376128,0.00041823,30]
[394910110,1764109848788,-500.0,0.00041823,30]
[394910112,1764109848798,-478.75725327,0.00041823,30]
[394910114,1764109848807,-250.0,0.00041823,31]
[394910116,1764109848817,-151.0,0.00041823,31]
[394910118,1764109848827,-623.58710448,0.00041823,31]
[394910120,1764109848836,-250.0,0.00041823,30]
[394910122,1764109848846,-500.0,0.00041823,31]
[394910124,1764109848860,-496.47127164,0.00041823,31]
[394910126,1764109848869,-250.0,0.00041823,60]
[394910128,1764109848879,-151.0,0.00041823,60]
[394910130,1764109848889,-646.65982734,0.00041823,60]
[394910132,1764109848899,-250.0,0.00041823,31]
[394910134,1764109848909,-500.0,0.00041823,60]
[394910136,1764109848919,-514.84070869,0.00041823,60]
[394910138,1764109848928,-250.0,0.00041823,60]
[394910140,1764109848941,-250.0,0.00041823,30]
[394910142,1764109848951,-250.0,0.00041823,31]
[394910144,1764109848960,-250.0,0.00041823,60]
[394910146,1764109848970,-500.0,0.00041823,30]
[394910149,1764109848980,-500.0,0.00041823,30]
[394910151,1764109848989,-600.0,0.00041823,30]
[394910153,1764109848998,-666.0,0.00041823,30]
[394910154,1764109849008,-500.0,0.00041823,31]
[394910157,1764109849017,-500.0,0.00041823,31]
[394910159,1764109849027,-600.0,0.00041823,31]
[394910161,1764109849036,-500.0,0.00041823,60]
[394910162,1764109849046,-500.0,0.00041823,30]
[394910165,1764109849056,-500.0,0.00041823,60]
[394910166,1764109849065,-600.0,0.00041823,60]
[394910168,1764109849075,-500.0,0.00041823,31]
[394910169,1764109849084,-500.0,0.00041823,30]
[394910170,1764109849093,-250.0,0.00041823,30]
[394910171,1764109849103,-500.0,0.00041823,60]
[394910172,1764109849112,-500.0,0.00041823,31]
[394910173,1764109849121,-500.0,0.00041823,60]
[394910174,1764109849131,-151.0,0.00041823,30]
[394910175,1764109849141,-151.0,0.00041823,31]
[394910176,1764109849151,-215.0738,0.00041823,30]
[394910177,1764109849161,-151.0,0.00041823,60]
[394910178,1764109849170,-174.61919141,0.00041823,30]
[394910179,1764109849179,-500.0,0.00041823,30]
[394910180,1764109849189,-181.08010149,0.00041823,31]
[394910181,1764109849199,-500.0,0.00041823,31]
[394910182,1764109849208,-293.1945254,0.00041823,60]
[394910183,1764109849218,-250.0,0.00041823,30]
[394910184,1764109849227,-500.0,0.00041823,30]
[394910186,1764109849237,-500.0,0.00041823,60]
[394910188,1764109849246,-250.0,0.00041823,31]
[394910190,1764109849255,-500.0,0.00041823,31]
[394910192,1764109849265,-250.0,0.00041823,60]
[394910194,1764109849274,-500.0,0.00041823,60]
[394910196,1764109849284,-151.0,0.00041831,30]
[394910198,1764109849293,-250.0,0.00041831,30]
[394910200,1764109849303,-208.40463953,0.00041831,30]
[394910202,1764109849313,-500.0,0.00041831,30]
[394910204,1764109849323,-557.5788265,0.00041831,30]
[394910206,1764109849333,-579.88197956,0.00041831,30]
[394910208,1764109849342,-151.0,0.00041831,30]
[394910210,1764109849352,-461.67526834,0.00041831,30]
[394910212,1764109849362,-250.0,0.00041831,30]
[394910214,1764109849371,-250.0,0.00041831,30]
[394910216,1764109849381,-500.0,0.00041831,30]
[394910218,1764109849391,-500.0,0.00041831,30]
[394910220,1764109849402,-666.0,0.00041831,30]
[394910223,1764109849412,-600.0,0.00041831,30]
[394910225,1764109849421,-500.0,0.00041831,30]
[394910227,1764109849433,-500.0,0.00041831,30]
[394910229,1764109849443,-250.0,0.00041831,30]
[394910231,1764109849453,-151.0,0.00041831,30]
[394910233,1764109849462,-207.4,0.00041831,30]
[394910235,1764109849472,-168.3888056,0.00041831,30]
[394910237,1764109849482,-500.0,0.00041831,30]
[394910239,1764109849491,-250.0,0.00041831,30]
[394910241,1764109849501,-500.0,0.00041831,30]
[394910243,1764109849510,-227.75456797,0.00041838,120]
[394910245,1764109849519,-1820.90050302,0.00041839,15]
[394910247,1764109849529,-819.11947874,0.0004184,5]
[394910249,1764109849539,-668.468672,0.0004184,14]
[394910251,1764109849548,-151.03336104,0.0004184,15]
[394910253,1764109849558,-537.85405749,0.0004184,2]
[394910255,1764109849568,-3567.30785579,0.0004184,2]
[394910257,1764109849577,-161.12634652,0.0004184,2]
[394910259,1764109849587,-474.32122085,0.00041843,2]
[394910261,1764109849597,-559.19188,0.00041867,120]
[394910263,1764109849606,-445.202766,0.00041867,120]
[394910265,1764109849616,-151.0,0.00041867,120]
[394910267,1764109849625,-250.0,0.00041867,120]
[394910269,1764109849636,-537.6845,0.00041867,120]
[394910271,1764109849645,-151.0,0.00041867,120]
[394910274,1764109849654,-500.0,0.00041867,120]
[394910276,1764109849664,-151.0,0.00041867,120]
[394910278,1764109849673,-250.0,0.00041867,120]
[394910280,1764109849682,-250.0,0.00041867,120]
[394910282,1764109849692,-500.0,0.00041867,120]
[394910284,1764109849701,-500.0,0.00041867,120]
[394910286,1764109849711,-666.0,0.00041867,120]
[394910288,1764109849720,-600.0,0.00041867,120]
[394910290,1764109849730,-500.0,0.00041867,120]
[394910292,1764109849739,-500.0,0.00041867,120]
[394910294,1764109849749,-250.0,0.00041867,120]
[394910296,1764109849759,-151.0,0.00041867,120]
[394910298,1764109849768,-162.380719,0.00041867,120]
[394910300,1764109849778,-500.0,0.00041867,120]
[394910302,1764109849788,-500.0,0.00041867,120]
[394910304,1764109849797,-250.0,0.00041867,120]
[394910306,1764109849807,-653.04337499,0.00041869,30]
[394910308,1764109849817,-572.0711057,0.00041869,30]
[394910310,1764109849826,-400.0,0.0004187,3]
[394910312,1764109849836,-400.0,0.0004187,3]
[394910314,1764109849845,-193.25100439,0.000419,120]
[394910317,1764109849856,-192.16588209,0.000419,120]
[394910319,1764109849870,-202.53391419,0.000419,120]
[394910321,1764109849879,-176.9611258,0.000419,120]
[394910323,1764109849889,-196.01161823,0.000419,120]
[394910325,1764109849899,-189.365339,0.000419,120]
[394910327,1764109849909,-243.38768154,0.000419,120]
[394910329,1764109849919,-588.6,0.00041917,8]
[394910331,1764109849929,-1454.26,0.00041917,8]
[394910333,1764109849942,-1363.48,0.00041917,8]
[394910335,1764109849952,-539.24,0.00041917,120]
[394910337,1764109849961,-151.0,0.00041917,120]
[394910339,1764109849971,-429.318,0.00041917,120]
[394910341,1764109849980,-250.0,0.00041917,120]
[394910344,1764109849990,-151.0,0.00041917,120]
[394910346,1764109850000,-500.0,0.00041917,120]
[394910348,1764109850009,-518.5,0.00041917,120]
[394910350,1764109850019,-151.0,0.00041917,120]
[394910352,1764109850029,-2734.46830451,0.00041917,120]
[394910354,1764109850040,-250.0,0.00041917,120]
[394910356,1764109850050,-250.0,0.00041917,120]
[394910358,1764109850059,-151.0,0.00041917,120]
[394910360,1764109850069,-500.0,0.00041917,120]
[394910362,1764109850079,-500.0,0.00041917,120]
[394910364,1764109850090,-666.0,0.00041917,120]
[394910366,1764109850100,-600.0,0.00041917,120]
[394910368,1764109850110,-500.0,0.00041917,120]
[394910370,1764109850120,-500.0,0.00041917,120]
[394910372,1764109850130,-250.0,0.00041917,120]
[394910375,1764109850143,-151.0,0.00041917,120]
[394910393,1764109850296,-151.0,0.00041917,120]
[394910395,1764109850305,-156.587,0.00041917,120]
[394910397,1764109850315,-500.0,0.00041917,120]
[394910399,1764109850324,-250.0,0.00041917,120]
[394910401,1764109850333,-500.0,0.00041917,120]
[394910403,1764109850342,-763.45,0.00041917,2]
[394910405,1764109850351,-311.1,0.00041917,120]
[394910407,1764109850361,-8713.23,0.00041917,8]
[394910409,1764109850370,-500.0,0.00041917,8]
[394910411,1764109850379,-629.59,0.00041917,8]
[394910413,1764109850388,-168.35766486,0.00041917,2]
[394910415,1764109850397,-7850.89,0.00041917,8]
[394910417,1764109850406,-1000.0,0.00041918,8]
[394910419,1764109850415,-500.0,0.00041918,120]
[394910421,1764109850424,-529.14204968,0.0004193,7]
[394910423,1764109850433,-2282.37,0.00041937,30]
[394910425,1764109850442,-2282.37,0.00041937,30]
[394910427,1764109850452,-50000.0,0.00041939,30]
[394910429,1764109850461,-50000.0,0.00041939,31]
[394910431,1764109850470,-50000.0,0.00041939,32]
[394910433,1764109850478,-50000.0,0.00041939,33]
[394910434,1764109850487,-50000.0,0.00041939,34]
[394910437,1764109850496,-50000.0,0.00041939,35]
[394910439,1764109850505,-50000.0,0.00041939,36]
[394910440,1764109850514,-50000.0,0.00041939,37]
[394910442,1764109850524,-366.75242155,0.0004194,30]
[394910444,1764109850533,-366.75242155,0.0004194,30]
[394910446,1764109850542,-14314453.62497643,0.0004194,7]
[394910459,1764109850652,-6316.52133088,0.0004194,7]
[394910477,1764109850806,-478.87583448,0.00022294,2]
[394910479,1764109850817,-820.02695401,0.00022294,2]
[394910481,1764109850827,-21.09721151,0.00022294,2]
[394910483,1764109850836,-1320.0,0.00025294,2]
[394910485,1764109850846,-478.594,0.00028294,2]
[394910487,1764109850857,-150.0,0.00038356,8]
[394910489,1764109850870,-232.69382186,0.00039798,2]
[394910491,1764109850881,-468.53617814,0.00039798,2]
[394910493,1764109850890,-1239.66504217,0.00041029,15]
[394910495,1764109850899,-2244.59707969,0.0004194,7]
[394910497,1764109850910,-1773.36298609,0.0004194,7]
[394910499,1764109850920,-1161.0,0.0004194,7]
[394910501,1764109850931,-1108.88047643,0.0004194,7]
[394910503,1764109850944,-1058.32946893,0.0004194,7]
[394910506,1764109850956,-537.47173744,0.0004194,7]
[394910508,1764109850967,-508.01591434,0.0004194,7]
[394910510,1764109850978,-10335.26202311,0.0004194,7]
[394910512,1764109850989,-1421.8668899,0.0004194,7]
[394910514,1764109851000,-5265.3587318,0.0004194,7]
[394910516,1764109851011,-1345.88845418,0.0004194,7]
[394910518,1764109851022,-332980.89878933,0.0004194,7]
[394910520,1764109851034,-738.4500015,0.0004194,7]
[394910523,1764109851044,-1893.12,0.0004194,7]
[394910526,1764109851065,-300.26063,0.00039475,95]
[394910528,1764109851076,-41511.81224173,0.0004194,7]
[394910530,1764109851087,-6867.65041821,0.0004194,7]
[394910532,1764109851102,-1239.66504217,0.00041434,15]